fUSD/lending_fUSD_20240331
["ID","MTS","AMOUNT","RATE_DAILY","PERIOD"]
[321118220,1711900356634,-726.96,0.00057534,120]
[321118221,1711900356644,-500.0,0.00057534,50]
[321118222,1711900356654,-500.0,0.00057534,120]
[321118223,1711900356665,-500.0,0.00057534,120]
[321118224,1711900356675,-500.0,0.00057534,120]
[321118225,1711900356684,-753.06,0.00057534,120]
[321118226,1711900356694,-500.0,0.00057534,120]
[321118227,1711900356703,-197.51,0.00057534,120]
[321118228,1711900356713,-741.95,0.00057534,120]
[321118229,1711900356723,-500.0,0.00057534,120]
[321118230,1711900356733,-500.0,0.00057534,120]
[321118231,1711900356743,-500.0,0.00057534,120]
[321118232,1711900356753,-500.0,0.00057534,120]
[321118233,1711900356763,-500.0,0.00057534,120]
[321118234,1711900356772,-500.0,0.00057534,120]
[321118235,1711900356782,-500.0,0.00057534,120]
[321118236,1711900356791,-500.0,0.00057534,120]
[321118237,1711900356801,-500.0,0.00057534,120]
[321118238,1711900356810,-356.72,0.00057534,120]
[321118239,1711900356820,-500.0,0.00057534,120]
[321118240,1711900356829,-796.42,0.00057534,120]
[321118241,1711900356839,-887.89,0.00057534,120]
[321118242,1711900356849,-500.0,0.00057534,120]
[321118243,1711900356858,-556.88,0.00057534,120]
[321118244,1711900356868,-646.48,0.00057534,120]
[321118245,1711900356877,-500.0,0.00057534,120]
[321118246,1711900356887,-500.0,0.00057534,120]
[321118247,1711900356896,-500.0,0.00057534,120]
[321118248,1711900356906,-510.99,0.00057534,120]
[321118249,1711900356915,-849.94,0.00057534,120]
[321118250,1711900356925,-500.0,0.00057534,120]
[321118251,1711900356935,-500.0,0.00057534,120]
[321118252,1711900356944,-500.0,0.00057534,120]
[321118253,1711900356954,-500.0,0.00057534,120]
[321118254,1711900356963,-500.0,0.00057534,120]
[321118255,1711900356973,-799.12,0.00057534,120]
[321118256,1711900356982,-175.77936027,0.00057534,120]
[321118257,1711900356992,-500.0,0.00057534,120]
[321118258,1711900357002,-500.0,0.00057534,120]
[321118259,1711900357011,-500.0,0.00057534,120]
[321118260,1711900357021,-500.0,0.00057534,120]
[321118261,1711900357032,-500.0,0.00057534,120]
[321118262,1711900357042,-500.0,0.00057534,120]
[321118263,1711900357052,-500.0,0.00057534,120]
[321118264,1711900357062,-883.96,0.00057534,120]
[321118265,1711900357073,-500.0,0.00057534,120]
[321118266,1711900357083,-500.0,0.00057534,120]
[321118267,1711900357093,-815.7,0.00057534,120]
[321118268,1711900357103,-500.0,0.00057534,120]
[321118269,1711900357113,-804.07,0.00057534,120]
[321118270,1711900357122,-635.28,0.00057534,120]
[321118271,1711900357132,-444.41794919,0.00057534,120]
[321118272,1711900357141,-500.0,0.00057534,120]
[321118273,1711900357151,-959.19,0.00057534,120]
[321118274,1711900357160,-683.74,0.00057534,120]
[321118275,1711900357171,-151.0,0.00057534,120]
[321118276,1711900357180,-500.0,0.00057534,120]
[321118277,1711900357190,-1061.5,0.00057534,120]
[321118278,1711900357199,-736.85,0.00057534,120]
[321118279,1711900357209,-500.0,0.00057534,120]
[321118280,1711900357218,-500.0,0.00057534,120]
[321118281,1711900357228,-500.0,0.00057534,120]
[321118282,1711900357238,-500.0,0.00057534,120]
[321118283,1711900357247,-592.16,0.00057534,120]
[321118284,1711900357257,-500.0,0.00057534,120]
[321118285,1711900357267,-500.0,0.00057534,120]
[321118286,1711900357277,-464.7,0.00057534,120]
[321118287,1711900357288,-571.87,0.00057534,120]
[321118288,1711900357300,-500.0,0.00057534,16]
[321118289,1711900357310,-781.99,0.00057534,120]
[321118290,1711900357319,-828.46,0.00057534,120]
[321118291,1711900357330,-500.0,0.00057534,120]
[321118292,1711900357339,-500.0,0.00057534,120]
[321118293,1711900357348,-500.0,0.00057534,120]
[321118294,1711900357358,-500.0,0.00057534,120]
[321118295,1711900357369,-500.0,0.00057534,120]
[321118296,1711900357380,-500.0,0.00057534,120]
[321118297,1711900357389,-151.0,0.00057534,120]
[321118298,1711900357399,-519.19,0.00057534,120]
[321118299,1711900357409,-680.37,0.00057534,120]
[321118300,1711900357418,-151.0,0.00057534,120]
[321118301,1711900357428,-500.0,0.00057534,120]
[321118302,1711900357438,-151.0,0.00057534,14]
[321118303,1711900357448,-735.71,0.00057534,120]
[321118304,1711900357458,-500.0,0.00057534,120]
[321118305,1711900357467,-151.0,0.00057534,120]
[321118306,1711900357477,-500.0,0.00057534,120]
[321118307,1711900357486,-151.0,0.00057534,14]
[321118308,1711900357496,-648.33,0.00057534,120]
[321118309,1711900357506,-151.0,0.00057534,120]
[321118310,1711900357516,-151.0,0.00057534,120]
[321118311,1711900357526,-500.0,0.00057534,120]
[321118312,1711900357536,-500.0,0.00057534,120]
[321118313,1711900357545,-680.7,0.00057534,120]
[321118314,1711900357555,-151.0,0.00057534,120]
[321118315,1711900357564,-500.0,0.00057534,120]
[321118316,1711900357574,-151.0,0.00057534,120]
[321118317,1711900357584,-151.0,0.00057534,120]
[321118318,1711900357593,-500.0,0.00057534,120]
[321118319,1711900357604,-500.0,0.00057534,120]
[321118320,1711900357613,-1067.63,0.00057534,120]
[321118321,1711900357623,-617.46,0.00057534,120]
[321118322,1711900357632,-500.0,0.00057534,120]
[321118323,1711900357641,-151.0,0.00057534,120]
[321118324,1711900357651,-500.0,0.00057534,120]
[321118325,1711900357661,-615.17,0.00057534,120]
[321118326,1711900357671,-753.46,0.00057534,120]
[321118327,1711900357680,-671.0,0.00057534,120]
[321118328,1711900357689,-742.98,0.00057534,120]
[321118329,1711900357698,-500.0,0.00057534,120]
[321118330,1711900357708,-579.39,0.00057534,120]
[321118331,1711900357717,-500.0,0.00057534,120]
[321118332,1711900357727,-759.51,0.00057534,120]
[321118333,1711900357737,-500.0,0.00057534,120]
[321118334,1711900357746,-500.0,0.00057534,120]
[321118335,1711900357756,-500.0,0.00057534,7]
[321118336,1711900357766,-500.0,0.00057534,120]
[321118337,1711900357775,-254.05,0.00057534,120]
[321118338,1711900357785,-500.0,0.00057534,120]
[321118339,1711900357794,-730.83,0.00057534,30]
[321118340,1711900357804,-562.36,0.00057534,120]
[321118341,1711900357813,-500.0,0.00057534,120]
[321118342,1711900357823,-500.0,0.00057534,120]
[321118343,1711900357834,-500.0,0.00057534,120]
[321118344,1711900357843,-591.57,0.00057534,120]
[321118345,1711900357852,-500.0,0.00057534,120]
[321118346,1711900357862,-754.29,0.00057534,120]
[321118347,1711900357871,-544.56,0.00057534,120]
[321118348,1711900357881,-500.0,0.00057534,120]
[321118349,1711900357891,-500.0,0.00057534,120]
[321118350,1711900357901,-563.24,0.00057534,120]
[321118351,1711900357910,-500.0,0.00057534,120]
[321118352,1711900357919,-500.0,0.00057534,120]
[321118353,1711900357928,-500.0,0.00057534,120]
[321118354,1711900357939,-662.41,0.00057534,120]
[321118355,1711900357949,-995.44,0.00057534,120]
[321118356,1711900357958,-500.0,0.00057534,120]
[321118357,1711900357968,-500.0,0.00057534,120]
[321118358,1711900357977,-500.0,0.00057534,120]
[321118359,1711900357987,-629.64,0.00057534,120]
[321118360,1711900357996,-500.0,0.00057534,120]
[321118361,1711900358006,-500.0,0.00057534,120]
[321118362,1711900358015,-531.25,0.00057534,120]
[321118363,1711900358024,-500.0,0.00057534,30]
[321118364,1711900358034,-543.59,0.00057534,120]
[321118365,1711900358043,-500.0,0.00057534,120]
[321118366,1711900358053,-761.88,0.00057534,120]
[321118367,1711900358062,-711.25,0.00057534,120]
[321118368,1711900358072,-646.54,0.00057534,120]
[321118369,1711900358083,-500.0,0.00057534,120]
[321118370,1711900358092,-1048.22,0.00057534,120]
[321118371,1711900358102,-500.0,0.00057534,120]
[321118372,1711900358111,-500.0,0.00057534,120]
[321118373,1711900358120,-500.0,0.00057534,120]
[321118374,1711900358129,-844.59,0.00057534,120]
[321118375,1711900358139,-519.79,0.00057534,120]
[321118376,1711900358149,-729.88,0.00057534,120]
[321118377,1711900358159,-539.07,0.00057534,120]
[321118378,1711900358168,-915.41,0.00057534,120]
[321118379,1711900358178,-500.0,0.00057534,120]
[321118380,1711900358188,-771.12,0.00057534,120]
[321118381,1711900358197,-500.0,0.00057534,120]
[321118382,1711900358207,-544.62,0.00057534,120]
[321118383,1711900358216,-618.81,0.00057534,120]
[321118384,1711900358226,-560.35,0.00057534,120]
[321118385,1711900358236,-500.0,0.00057534,120]
[321118386,1711900358246,-500.0,0.00057534,120]
[321118387,1711900358255,-500.0,0.00057534,120]
[321118388,1711900358265,-638.36159785,0.00057534,120]
[321118389,1711900358275,-500.0,0.00057534,120]
[321118390,1711900358290,-500.0,0.00057534,120]
[321118391,1711900358299,-500.0,0.00057534,120]
[321118392,1711900358309,-382.02,0.00057534,120]
[321118393,1711900358318,-860.0,0.00057534,120]
[321118394,1711900358329,-500.0,0.00057534,120]
[321118395,1711900358339,-389.93183514,0.00057534,120]
[321118396,1711900358348,-500.0,0.00057534,120]
[321118397,1711900358357,-881.22,0.00057534,120]
[321118398,1711900358368,-500.0,0.00057534,120]
[321118399,1711900358377,-500.0,0.00057534,120]
[321118400,1711900358387,-500.0,0.00057534,120]
[321118401,1711900358396,-500.0,0.00057534,120]
[321118402,1711900358405,-644.32,0.00057534,120]
[321118403,1711900358415,-500.0,0.00057534,120]
[321118404,1711900358425,-500.0,0.00057534,120]
[321118405,1711900358435,-500.0,0.00057534,120]
[321118406,1711900358444,-500.0,0.00057534,120]
[321118407,1711900358454,-500.0,0.00057534,120]
[321118408,1711900358463,-1276.69,0.00057534,120]
[321118409,1711900358473,-500.0,0.00057534,120]
[321118410,1711900358482,-500.0,0.00057534,120]
[321118411,1711900358492,-500.0,0.00057534,120]
[321118412,1711900358501,-500.0,0.00057534,120]
[321118413,1711900358511,-500.0,0.00057534,120]
[321118414,1711900358520,-500.0,0.00057534,120]
[321118415,1711900358532,-645.6115144,0.00057534,120]
[321118416,1711900358541,-500.0,0.00057534,120]
[321118417,1711900358551,-500.0,0.00057534,120]
[321118418,1711900358561,-500.0,0.00057534,120]
[321118419,1711900358570,-259.83,0.00057534,120]
[321118420,1711900358581,-500.0,0.00057534,120]
[321118421,1711900358590,-554.91,0.00057534,120]
[321118422,1711900358600,-545.06,0.00057534,120]
[321118423,1711900358609,-500.0,0.00057534,120]
[321118424,1711900358619,-500.0,0.00057534,120]
[321118425,1711900358628,-500.0,0.00057534,120]
[321118426,1711900358637,-688.34,0.00057534,120]
[321118427,1711900358647,-1281.67,0.00057534,120]
[321118428,1711900358657,-500.0,0.00057534,120]
[321118429,1711900358667,-1988.35,0.00057534,120]
[321118430,1711900358676,-500.0,0.00057534,120]
[321118431,1711900358685,-500.0,0.00057534,120]
[321118432,1711900358694,-555.54,0.00057534,120]
[321118433,1711900358704,-4923.54,0.00057534,120]
[321118434,1711900358714,-500.0,0.00057534,120]
[321118435,1711900358723,-593.25,0.00057534,120]
[321118436,1711900358732,-500.0,0.00057534,120]
[321118437,1711900358741,-1037.57,0.00057534,120]
[321118438,1711900358750,-500.0,0.00057534,120]
[321118439,1711900358759,-1959.37,0.00057534,120]
[321118440,1711900358768,-500.0,0.00057534,120]
[321118441,1711900358777,-500.0,0.00057534,120]
[321118442,1711900358786,-507.1,0.00057534,120]
[321118443,1711900358796,-973.96,0.00057534,120]
[321118444,1711900358805,-17432.97,0.00057534,120]
[321118445,1711900358814,-575.53,0.00057534,120]
[321118446,1711900358824,-836.36,0.00057534,120]
[321118447,1711900358834,-532.06501245,0.00057534,60]
[321118448,1711900358844,-664.02,0.00057534,120]
[321118449,1711900358853,-4982.73,0.00057534,120]
[321118450,1711900358862,-1206.53,0.00057534,120]
[321118451,1711900358871,-2111.34,0.00057534,120]
[321118452,1711900358880,-561.13,0.00057534,120]
[321118453,1711900358889,-535.14,0.00057534,120]
[321118454,1711900358995,-500.0,0.00057534,120]
[321118455,1711900359005,-500.0,0.00057534,120]
[321118456,1711900359015,-35203.05,0.00057534,120]
[321118457,1711900359026,-500.0,0.00057534,120]
[321118458,1711900359035,-500.0,0.00057534,120]
[321118459,1711900359045,-500.0,0.00057534,120]
[321118460,1711900359055,-212.74,0.00057534,120]
[321118461,1711900359064,-20306.49,0.00057534,120]
[321118462,1711900359074,-500.0,0.00057534,120]
[321118463,1711900359084,-500.0,0.00057534,120]
[321118464,1711900359094,-2426.71,0.00057534,120]
[321118465,1711900359103,-3158.99,0.00057534,120]
[321118466,1711900359112,-500.0,0.00057534,120]
[321118467,1711900359122,-500.0,0.00057534,120]
[321118468,1711900359131,-6583.66,0.00057534,120]
[321118469,1711900359140,-550.6,0.00057534,120]
[321118470,1711900359150,-500.0,0.00057534,120]
[321118471,1711900359159,-603.62,0.00057534,120]
[321118472,1711900359168,-500.0,0.00057534,120]
[321118473,1711900359178,-4743.47,0.00057534,120]
[321118474,1711900359188,-649.91,0.00057534,120]
[321118475,1711900359198,-500.0,0.00057534,120]
[321118476,1711900359207,-1008.94,0.00057534,120]
[321118477,1711900359216,-1501.81,0.00057534,120]
[321118478,1711900359226,-500.0,0.00057534,120]
[321118479,1711900359235,-7272.15,0.00057534,120]
[321118480,1711900359244,-500.0,0.00057534,120]
[321118481,1711900359254,-500.0,0.00057534,120]
[321118482,1711900359264,-1951.74,0.00057534,120]
[321118483,1711900359273,-500.0,0.00057534,120]
[321118484,1711900359284,-1708.51,0.00057534,120]
[321118485,1711900359295,-500.0,0.00057534,120]
[321118486,1711900359304,-516.3,0.00057534,120]
[321118487,1711900359313,-2213.16,0.00057534,120]
[321118488,1711900359323,-830.035408,0.00057534,120]
[321118489,1711900359334,-151.0,0.00057534,120]
[321118490,1711900359344,-706.06,0.00057534,120]
[321118491,1711900359354,-500.0,0.00057534,120]
[321118492,1711900359364,-500.0,0.00057534,120]
[321118493,1711900359373,-500.0,0.00057534,120]
[321118494,1711900359382,-500.0,0.00057534,120]
[321118495,1711900359391,-4238.83,0.00057534,120]
[321118496,1711900359400,-830.035408,0.00057534,120]
[321118497,1711900359409,-1070.8,0.00057534,120]
[321118498,1711900359419,-1153.73,0.00057534,120]
[321118499,1711900359428,-506.91,0.00057534,120]
[321118500,1711900359437,-500.0,0.00057534,120]
[321118501,1711900359446,-11263.13,0.00057534,120]
[321118502,1711900359456,-500.0,0.00057534,120]
[321118503,1711900359465,-500.0,0.00057534,120]
[321118504,1711900359475,-6135.58,0.00057534,120]
[321118505,1711900359484,-500.0,0.00057534,120]
[321118506,1711900359494,-1063.3,0.00057534,120]
[321118507,1711900359503,-500.0,0.00057534,120]
[321118508,1711900359512,-1083.6,0.00057534,120]
[321118509,1711900359523,-151.0,0.00057534,120]
[321118510,1711900359533,-1674.93,0.00057534,120]
[321118511,1711900359543,-500.0,0.00057534,120]
[321118512,1711900359552,-547.37,0.00057534,120]
[321118513,1711900359562,-1968.84,0.00057534,120]
[321118514,1711900359571,-3729.06,0.00057534,120]
[321118515,1711900359582,-500.0,0.00057534,120]
[321118516,1711900359591,-4646.47,0.00057534,120]
[321118517,1711900359601,-500.0,0.00057534,120]
[321118518,1711900359611,-2179.05,0.00057534,120]
[321118519,1711900359621,-16968.39,0.00057534,120]
[321118520,1711900359630,-509.40156601,0.00057534,120]
[321118521,1711900359641,-29017.57,0.00057534,120]
[321118522,1711900359651,-551.57,0.00057534,120]
[321118523,1711900359661,-584.14,0.00057534,120]
[321118524,1711900359670,-890.16,0.00057534,120]
[321118525,1711900359679,-3354.8,0.00057534,120]
[321118526,1711900359689,-911.19,0.00057534,120]
[321118527,1711900359700,-500.0,0.00057534,120]
[321118528,1711900359709,-749.8,0.00057534,120]
[321118529,1711900359719,-770.28,0.00057534,120]
[321118530,1711900359729,-1117.84,0.00057534,120]
[321118531,1711900359740,-500.0,0.00057534,120]
[321118532,1711900359749,-1829.63,0.00057534,120]
[321118533,1711900359759,-500.0,0.00057534,120]
[321118534,1711900359769,-500.0,0.00057534,120]
[321118535,1711900359778,-500.0,0.00057534,120]
[321118536,1711900359789,-3744.87,0.00057534,120]
[321118537,1711900359799,-500.0,0.00057534,120]
[321118538,1711900359808,-542.88,0.00057534,120]
[321118539,1711900359819,-500.0,0.00057534,120]
[321118540,1711900359829,-1553.34,0.00057534,120]
[321118541,1711900359840,-1915.68,0.00057534,120]
[321118542,1711900359850,-500.0,0.00057534,120]
[321118543,1711900359861,-500.0,0.00057534,120]
[321118544,1711900359871,-500.0,0.00057534,120]
[321118545,1711900359880,-196.747745,0.00057534,120]
[321118546,1711900359890,-196.747745,0.00057534,120]
[321118547,1711900359899,-196.747745,0.00057534,120]
[321118548,1711900359909,-196.747745,0.00057534,120]
[321118549,1711900359918,-500.0,0.00057534,120]
[321118550,1711900359927,-584.91,0.00057534,120]
[321118551,1711900359937,-882.75,0.00057534,120]
[321118552,1711900359946,-151.0,0.00057534,120]
[321118553,1711900359956,-221.06777371,0.00057534,120]
[321118554,1711900359965,-244.332672,0.00057534,120]
[321118555,1711900359974,-1875.4,0.00057534,120]
[321118556,1711900359984,-500.0,0.00057534,120]
[321118557,1711900359993,-500.0,0.00057534,120]
[321118558,1711900360003,-733.42,0.00057534,120]
[321118559,1711900360013,-196.747745,0.00057534,120]
[321118560,1711900360022,-196.747745,0.00057534,120]
[321118561,1711900360032,-784.97,0.00057534,120]
[321118562,1711900360041,-500.0,0.00057534,120]
[321118563,1711900360050,-2559.61,0.00057534,120]
[321118564,1711900360059,-196.747745,0.00057534,120]
[321118565,1711900360069,-4029.59,0.00057534,120]
[321118566,1711900360079,-196.747744,0.00057534,120]
[321118567,1711900360089,-1741.29,0.00057534,120]
[321118568,1711900360098,-500.0,0.00057534,120]
[321118569,1711900360108,-8811.85,0.00057534,120]
[321118570,1711900360117,-612.97,0.00057534,120]
[321118571,1711900360127,-500.0,0.00057534,120]
[321118572,1711900360136,-2312.101622,0.00057534,120]
[321118573,1711900360146,-2312.101622,0.00057534,120]
[321118574,1711900360155,-2312.101622,0.00057534,120]
[321118575,1711900360165,-2312.101622,0.00057534,120]
[321118576,1711900360174,-7506.96,0.00057534,21]
[321118577,1711900360184,-2797.36,0.00057534,120]
[321118578,1711900360194,-500.0,0.00057534,120]
[321118579,1711900360203,-1677.22,0.00057534,120]
[321118580,1711900360213,-1296.66,0.00057534,120]
[321118581,1711900360223,-500.0,0.00057534,120]
[321118582,1711900360232,-966.37,0.00057534,120]
[321118583,1711900360241,-2312.101622,0.00057534,120]
[321118584,1711900360250,-500.0,0.00057534,120]
[321118585,1711900360260,-2312.101622,0.00057534,120]
[321118586,1711900360270,-500.0,0.00057534,120]
[321118587,1711900360280,-2312.101622,0.00057534,120]
[321118588,1711900360293,-500.0,0.00057534,120]
[321118589,1711900360302,-2312.101631,0.00057534,120]
[321118590,1711900360312,-151.0,0.00057534,120]
[321118591,1711900360322,-151.0,0.00057534,120]
[321118592,1711900360332,-151.0,0.00057534,120]
[321118593,1711900360340,-178.701353,0.00057534,120]
[321118594,1711900360350,-12461.24,0.00057534,120]
[321118595,1711900360361,-3203.08,0.00057534,120]
[321118596,1711900360370,-1043.52,0.00057534,120]
[321118597,1711900360379,-4560.05,0.00057534,120]
[321118598,1711900360388,-436.499066,0.00057534,120]
[321118599,1711900360398,-524.290653,0.00057534,120]
[321118600,1711900360407,-436.499066,0.00057534,120]
[321118601,1711900360417,-294.37,0.00057534,120]
[321118602,1711900360426,-524.290653,0.00057534,120]
[321118603,1711900360435,-436.499066,0.00057534,120]
[321118604,1711900360444,-524.290653,0.00057534,120]
[321118605,1711900360454,-500.0,0.00057534,120]
[321118606,1711900360463,-436.499066,0.00057534,120]
[321118607,1711900360472,-524.290653,0.00057534,120]
[321118608,1711900360482,-1828.48,0.00057534,120]
[321118609,1711900360491,-500.0,0.00057534,120]
[321118610,1711900360500,-1209.33,0.00057534,120]
[321118611,1711900360510,-868.97,0.00057534,120]
[321118612,1711900360520,-436.499066,0.00057534,120]
[321118613,1711900360530,-436.499066,0.00057534,120]
[321118614,1711900360539,-500.0,0.00057534,7]
[321118615,1711900360550,-436.499066,0.00057534,120]
[321118616,1711900360558,-151.0,0.00057534,120]
[321118617,1711900360568,-436.499066,0.00057534,120]
[321118618,1711900360577,-151.0,0.00057534,120]
[321118619,1711900360587,-500.0,0.00057534,120]
[321118620,1711900360596,-151.0,0.00057534,120]
[321118621,1711900360605,-151.0,0.00057534,120]
[321118622,1711900360615,-1928.53,0.00057534,120]
[321118623,1711900360624,-524.290653,0.00057534,120]
[321118624,1711900360633,-596.22,0.00057534,120]
[321118625,1711900360642,-524.290653,0.00057534,120]
[321118626,1711900360651,-524.290653,0.00057534,120]
[321118627,1711900360661,-500.0,0.00057534,120]
[321118628,1711900360670,-524.290661,0.00057534,120]
[321118629,1711900360680,-609.97,0.00057534,120]
[321118630,1711900360689,-8356.87,0.00057534,120]
[321118631,1711900360699,-500.0,0.00057534,120]
[321118632,1711900360709,-500.0,0.00057534,120]
[321118633,1711900360718,-1782.7,0.00057534,120]
[321118634,1711900360727,-500.0,0.00057534,120]
[321118635,1711900360737,-734.891725,0.00057534,120]
[321118636,1711900360746,-525.13,0.00057534,120]
[321118637,1711900360755,-1415.86,0.00057534,120]
[321118638,1711900360765,-1616.02,0.00057534,120]
[321118639,1711900360774,-2311.2,0.00057534,120]
[321118640,1711900360784,-734.891725,0.00057534,120]
[321118641,1711900360794,-734.891725,0.00057534,120]
[321118642,1711900360803,-12648.79,0.00057534,120]
[321118643,1711900360813,-734.891725,0.00057534,120]
[321118644,1711900360822,-2232.12,0.00057534,120]
[321118645,1711900360832,-500.0,0.00057534,120]
[321118646,1711900360842,-1508.33,0.00057534,120]
[321118647,1711900360851,-500.0,0.00057534,120]
[321118648,1711900360861,-500.0,0.00057534,120]
[321118649,1711900360871,-500.0,0.00057534,120]
[321118650,1711900360880,-151.0,0.00057534,30]
[321118651,1711900360890,-151.0,0.00057534,30]
[321118652,1711900360899,-151.0,0.00057534,30]
[321118653,1711900360909,-151.0,0.00057534,30]
[321118654,1711900360918,-734.891725,0.00057534,120]
[321118655,1711900360927,-734.891725,0.00057534,120]
[321118656,1711900360936,-734.891725,0.00057534,120]
[321118657,1711900360946,-734.891724,0.00057534,120]
[321118658,1711900360955,-682.15,0.00057534,120]
[321118659,1711900360965,-1065.68,0.00057534,120]
[321118660,1711900360974,-500.0,0.00057534,120]
[321118661,1711900360984,-3149.36,0.00057534,120]
[321118662,1711900360994,-2930.26,0.00057534,120]
[321118663,1711900361004,-825.7454,0.00057534,120]
[321118664,1711900361013,-825.7454,0.00057534,120]
[321118665,1711900361023,-825.7454,0.00057534,120]
[321118666,1711900361033,-825.7454,0.00057534,120]
[321118667,1711900361043,-500.0,0.00057534,120]
[321118668,1711900361053,-825.7454,0.00057534,120]
[321118669,1711900361063,-500.0,0.00057534,120]
[321118670,1711900361073,-696.26,0.00057534,120]
[321118671,1711900361083,-825.7454,0.00057534,120]
[321118672,1711900361093,-825.7454,0.00057534,120]
[321118673,1711900361102,-825.745392,0.00057534,120]
[321118674,1711900361113,-452.4452889,0.00057534,120]
[321118675,1711900361123,-1509.76,0.00057534,120]
[321118676,1711900361132,-515.16,0.00057534,120]
[321118677,1711900361142,-500.0,0.00057534,120]
[321118678,1711900361152,-4982.8,0.00057534,120]
[321118679,1711900361162,-717.55,0.00057534,120]
[321118680,1711900361172,-2406.23,0.00057534,120]
[321118681,1711900361182,-500.0,0.00057534,120]
[321118682,1711900361191,-5346.73,0.00057534,120]
[321118683,1711900361201,-259.738436,0.00057534,30]
[321118684,1711900361210,-259.738436,0.00057534,30]
[321118685,1711900361220,-500.0,0.00057534,120]
[321118686,1711900361230,-3295.3,0.00057534,120]
[321118687,1711900361240,-688.17,0.00057534,120]
[321118688,1711900361250,-551.95,0.00057534,120]
[321118689,1711900361260,-1648.61,0.00057534,120]
[321118690,1711900361270,-259.738436,0.00057534,30]
[321118691,1711900361281,-259.738436,0.00057534,30]
[321118692,1711900361295,-500.0,0.00057534,120]
[321118693,1711900361305,-752.11,0.00057534,120]
[321118694,1711900361314,-716.5,0.00057534,120]
[321118695,1711900361324,-500.0,0.00057534,120]
[321118696,1711900361336,-694.07,0.00057534,120]
[321118697,1711900361345,-615.79,0.00057534,120]
[321118698,1711900361356,-883.93,0.00057534,120]
[321118699,1711900361369,-500.0,0.00057534,120]
[321118700,1711900361379,-403.644956,0.00057534,120]
[321118701,1711900361389,-403.644956,0.00057534,120]
[321118702,1711900361399,-403.644956,0.00057534,120]
[321118703,1711900361408,-500.0,0.00057534,120]
[321118704,1711900361417,-259.738436,0.00057534,30]
[321118705,1711900361427,-403.644956,0.00057534,120]
[321118706,1711900361436,-259.738436,0.00057534,30]
[321118707,1711900361446,-3973.68,0.00057534,120]
[321118708,1711900361457,-259.738436,0.00057534,30]
[321118709,1711900361466,-259.73843,0.00057534,30]
[321118710,1711900361476,-403.644956,0.00057534,120]
[321118711,1711900361486,-403.644956,0.00057534,120]
[321118712,1711900361497,-1150.28,0.00057534,120]
[321118713,1711900361507,-403.644956,0.00057534,120]
[321118714,1711900361517,-403.644964,0.00057534,120]
[321118715,1711900361527,-1646.9,0.00057534,120]
[321118716,1711900361538,-1225.53,0.00057534,120]
[321118717,1711900361547,-2159.97,0.00057534,120]
[321118718,1711900361557,-500.0,0.00057534,120]
[321118719,1711900361567,-994.44,0.00057534,120]